bitfinex/quotes_ETHUSD_20250214
["timestamp","ask_amount","ask_price","bid_price","bid_amount"]
[1739543502409,3.70016,2702.6,2701.9,0.55]
[1739543502410,3.70042,2702.4,2701.9,0.55]
[1739543502622,3.70042,2702.4,2701.8,0.5252]
[1739543503170,3.70018,2702.6,2701.8,0.5252]
[1739543503367,3.70018,2702.6,2701.9,3.70106]
[1739543503676,3.70041,2702.4,2701.9,0.55]
[1739543504220,3.70016,2702.6,2701.9,4.25109]
[1739543504414,3.70042,2702.4,2701.9,0.55]
[1739543505715,3.70042,2702.4,2701.9,4.25109]
[1739543505887,3.70042,2702.4,2701.9,5.14518131]
[1739543506092,3.70042,2702.4,2701.9,1.44409131]
[1739543506299,7.40041,2702.6,2701.9,5.14517131]
[1739543506619,0.8302,2702.7,2701.5,4.22679]
[1739543506769,3.70051,2702.4,2701.7,3.70127]
[1739543507672,3.70071,2702.2,2701.6,0.55]
[1739543507875,3.70071,2702.2,2701.5,0.5252]
[1739543508211,0.8302,2702.1,2701.3,3.70182]
[1739543508370,3.70099,2702.0,2701.2,4.22725]
[1739543508576,3.70151,2701.6,2700.9,4.22759]
[1739543508787,3.0,2701.8,2700.8,3.7026]
[1739543509114,0.8302,2702.0,2700.8,3.7025]
[1739543509115,3.70187,2701.4,2700.8,3.7025]
[1739543509280,3.70199,2701.3,2700.8,4.52051]
[1739543509478,3.70207,2701.2,2700.6,4.47761]
[1739543509799,3.70257,2700.9,2700.6,0.2496]
[1739543510320,3.70274,2700.7,2700.6,0.2496]
[1739543510672,3.70257,2700.9,2700.6,0.2496]
[1739543511295,3.70256,2700.9,2700.6,0.2496]
[1739543511701,3.70274,2700.7,2700.6,0.2496]
[1739543512385,4.44327,2700.7,2700.6,0.2496]
[1739543512577,3.70274,2700.7,2700.6,0.2496]
[1739543513898,6.70274,2700.7,2700.6,0.2496]
[1739543514326,11.13202496,2700.7,2700.6,0.2496]
[1739543514841,11.92692496,2700.7,2700.6,0.2496]
[1739543515509,11.92692496,2700.7,2699.3,3.70458]
[1739543515510,3.70396,2699.9,2699.3,3.70458]
[1739543516145,3.70396,2699.9,2699.3,3.70457]
[1739543516350,3.70399,2699.8,2699.3,3.70457]
[1739543516648,3.70421,2699.7,2699.2,0.5252]
[1739543516809,3.70421,2699.7,2699.2,4.22999]
[1739543517145,3.70399,2699.8,2699.2,4.22999]
[1739543517360,3.70399,2699.8,2699.3,3.70465]
[1739543517502,3.70399,2699.8,2699.2,4.22996]
[1739543517703,4.49864,2700.0,2699.2,0.5252]
[1739543518075,4.49864,2700.0,2699.3,3.70457]
[1739543518207,1.244764,2700.0,2699.2,0.5252]
[1739543518411,1.244764,2700.0,2699.3,3.70465]
[1739543518412,3.70406,2699.8,2699.3,3.70465]
[1739543518611,3.70411,2699.7,2699.2,4.22998]
[1739543518853,3.70406,2699.8,2699.3,3.70459]
[1739543519058,4.49867,2700.0,2699.2,4.22989]
[1739543519257,3.70391,2699.9,2699.3,3.70454]
[1739543519422,3.70391,2699.9,2699.2,4.22989]
[1739543519423,4.49867,2700.0,2699.4,3.70444]
[1739543519622,3.70355,2700.2,2699.7,3.70403]
[1739543519827,3.70318,2700.4,2699.8,3.70394]
[1739543520010,0.7949,2700.7,2699.9,0.03703656]
[1739543520210,8.92697496,2700.7,2699.5,0.5252]
[1739543520407,3.70408,2699.8,2699.2,0.5252]
[1739543520645,3.70408,2699.8,2699.3,0.423005]
[1739543520850,3.70397,2699.9,2699.3,4.127575]
[1739543521054,3.70407,2699.8,2699.3,4.127575]
[1739543521427,3.70393,2699.9,2699.3,0.423005]
[1739543521632,0.7949,2700.2,2699.6,3.70417]
[1739543521831,3.70366,2700.1,2699.6,3.70424]
[1739543522235,3.70366,2700.1,2699.6,3.70416]
[1739543522748,3.70366,2700.1,2699.4,3.70444]
[1739543522953,7.40731,2700.1,2699.6,3.70424]
[1739543523155,3.70407,2699.8,2699.2,4.22992]
[1739543523454,3.70415,2699.7,2699.2,4.22992]
[1739543523969,4.49877,2699.9,2699.3,3.70458]
[1739543524187,4.49877,2699.9,2699.2,4.22992]
[1739543524188,3.70397,2699.8,2699.2,0.5252]
[1739543524454,3.70449,2699.5,2698.9,4.23032]
[1739543524681,3.70447,2699.5,2698.9,4.23032]
[1739543524955,7.40896,2699.5,2698.9,4.23032]
[1739543525115,3.70457,2699.4,2698.9,0.5252]
[1739543525316,3.70473,2699.3,2698.8,3.70533]
[1739543525743,4.075027,2699.4,2698.8,3.70524]
[1739543526021,7.40866,2699.6,2699.0,3.70498]
[1739543526221,0.7949,2699.9,2698.8,3.70526]
[1739543526222,3.70467,2699.3,2698.8,3.70526]
[1739543526417,3.70498,2699.1,2698.7,0.5252]
[1739543526613,3.70467,2699.3,2698.7,0.5252]
[1739543526812,3.7042,2699.7,2699.1,3.70492]
[1739543527054,4.15411,2699.7,2699.1,3.70486]
[1739543527259,3.70447,2699.5,2698.9,4.25521]
[1739543527444,3.70447,2699.5,2698.9,3.70518]
[1739543527832,4.15407,2699.7,2699.0,3.70504]
[1739543528037,4.49883,2699.9,2699.1,0.03704748]
[1739543528244,4.50262,2700.3,2699.3,0.5252]
[1739543528431,3.7993,2700.3,2699.8,3.7039]
[1739543528636,0.7993,2700.3,2699.8,3.7039]
[1739543529162,0.7993,2700.3,2699.9,3.70383]
[1739543529365,0.7993,2700.3,2699.4,0.55]
[1739543529568,0.7993,2700.7,2700.0,3.70361]
[1739543529721,0.7993,2700.7,2700.0,3.74064307]
[1739543529722,4.50206,2700.7,2700.0,3.74064307]
[1739543529921,3.70327,2700.4,2699.9,0.5252]
[1739543530169,3.70327,2700.4,2699.7,3.70403]
[1739543530463,3.70293,2700.6,2699.9,3.70383]
[1739543530661,0.7993,2700.7,2700.0,3.70362]
[1739543530822,3.70296,2700.6,2700.0,3.70367]
[1739543531021,0.7993,2700.7,2699.7,3.70405]
[1739543531269,0.7993,2700.7,2700.2,3.70333]
[1739543531569,0.7993,2701.0,2700.3,0.55]
[1739543531721,4.42928496,2702.2,2701.2,3.70201]
[1739543531927,0.7993,2702.1,2701.3,3.70182]
[1739543532136,4.50021,2702.1,2701.3,3.70182]
[1739543532441,0.450021,2702.0,2701.4,3.70173]
[1739543532619,0.450021,2702.0,2701.3,3.70182]
[1739543532620,0.450021,2702.0,2701.0,0.55]
[1739543532820,4.70628496,2702.5,2701.6,3.70149]
[1739543532821,0.7993,2702.5,2701.6,3.70149]
[1739543533113,0.7993,2702.5,2701.5,4.25164]
[1739543533363,3.70091,2702.1,2701.4,3.70172]
[1739543533719,3.70091,2702.1,2701.2,3.70201]
[1739543533920,3.70111,2701.9,2701.0,4.25227]
[1739543534163,3.70111,2701.9,2700.9,0.5252]
[1739543534164,4.50071,2701.7,2700.9,0.5252]
[1739543534670,0.7993,2701.7,2700.9,0.5252]
[1739543534965,4.5007,2701.7,2701.0,3.70222]
[1739543535162,0.370111,2701.8,2701.3,3.7018]
[1739543535730,0.7993,2702.4,2701.9,3.70106]
[1739543535966,0.7993,2702.4,2701.8,3.70121]
[1739543536138,4.4993,2702.7,2701.9,3.70098]
[1739543536471,0.7993,2702.7,2702.2,3.70068]
[1739543536767,1.249203,2702.7,2702.2,3.70068]
[1739543537344,1.249203,2702.7,2702.1,3.70081]
[1739543537554,1.249203,2702.7,2702.1,3.70076]
[1739543537756,1.249203,2702.7,2702.0,3.70089]
[1739543537955,3.70027,2702.5,2701.8,3.70115]
[1739543538277,3.70056,2702.3,2701.6,4.22658]
[1739543538480,0.7993,2702.1,2701.4,3.70166]
[1739543538634,0.7993,2702.1,2701.5,3.70155]
[1739543538835,0.7993,2702.1,2701.4,3.70166]
[1739543539081,0.7993,2702.1,2701.6,3.70144]
[1739543539283,0.7993,2702.1,2701.4,4.71712244]
[1739543539483,3.70046,2702.4,2701.6,3.70144]
[1739543539779,7.4996,2702.5,2701.7,3.70127]
[1739543539985,4.4996,2702.5,2701.7,7.40255]
[1739543540187,4.4996,2702.5,2701.5,0.55]
[1739543540188,4.520399,2702.4,2701.5,4.25163]
[1739543540383,4.520399,2702.4,2701.6,3.7015]
[1739543540384,3.70064,2702.3,2701.6,3.7015]
[1739543540552,4.520399,2702.4,2701.5,4.25154]
[1739543540755,0.819979,2702.4,2701.7,3.70127]
[1739543540956,0.8189,2702.9,2702.1,0.55]
[1739543541157,0.8189,2703.3,2702.7,3.6999]
[1739543541358,0.8189,2703.3,2702.8,3.69983]
[1739543541865,0.8189,2703.3,2702.6,7.40009]
[1739543542070,0.8189,2703.3,2702.7,3.69998]
[1739543542258,0.451795,2703.2,2702.7,3.69998]
[1739543542667,4.151135,2703.2,2702.5,3.70026]
[1739543542842,4.151135,2703.2,2702.5,7.40036]
[1739543543038,0.451795,2703.2,2702.1,0.55]
[1739543543239,3.69945,2703.1,2702.1,0.55]
[1739543543443,3.69945,2703.1,2702.4,3.70038]
[1739543543641,0.8189,2703.3,2702.2,0.0075]
[1739543543867,4.51776,2703.6,2702.8,3.69979]
[1739543544180,3.69898,2703.5,2702.8,3.69979]
[1739543544382,0.8189,2703.6,2703.0,3.69959]
[1739543544574,3.69891,2703.5,2702.9,3.73671183]
[1739543544770,0.8189,2703.6,2703.0,3.69958]
[1739543544945,3.6989,2703.5,2702.8,3.69975]
[1739543545370,3.6989,2703.5,2702.9,3.69971]
[1739543545583,1.270663,2703.6,2702.8,3.69975]
[1739543545759,1.270663,2703.6,2703.0,3.69959]
[1739543546081,3.69904,2703.4,2702.8,3.69975]
[1739543546286,8.668423,2703.6,2702.9,3.69966]
[1739543546502,0.8189,2703.6,2703.0,3.69949]
[1739543547284,0.8189,2703.6,2703.0,3.6995]
[1739543547508,4.51776,2703.6,2703.0,3.6995]
[1739543547915,4.51776,2703.6,2702.8,3.6998]
[1739543548196,3.69912,2703.4,2702.8,7.39958]
[1739543548490,3.69912,2703.4,2702.8,3.69978]
[1739543548656,3.69912,2703.4,2702.7,0.55]
[1739543548850,0.451776,2703.5,2702.6,3.70002]
[1739543549226,4.51849,2703.0,2702.4,4.22555]
[1739543549353,4.51849,2703.0,2702.4,0.5252]
[1739543549714,4.51849,2703.0,2702.3,4.0563]
[1739543550058,4.51849,2703.0,2702.4,3.7004]
[1739543550258,4.51849,2703.0,2702.3,4.0563]
[1739543550509,3.7893,2703.3,2702.6,3.70014]
[1739543550680,0.7893,2703.3,2702.8,3.69983]
[1739543550888,4.48858,2703.3,2702.6,3.70008]
[1739543551250,0.7893,2703.3,2702.7,0.55]
[1739543551482,4.48849,2703.3,2702.8,3.69975]
[1739543551888,4.48799,2703.7,2702.9,0.55]
[1739543552089,4.48799,2703.7,2703.1,3.69937]
[1739543552278,4.48799,2703.7,2703.1,3.69936]
[1739543552458,3.69878,2703.6,2703.1,3.69936]
[1739543552657,4.48799,2703.7,2703.2,4.24921]
[1739543552658,0.7893,2703.7,2703.2,4.24921]
[1739543552917,0.7893,2704.0,2703.3,0.794857]
[1739543553208,0.7893,2704.0,2703.6,3.69876]
[1739543553368,0.7893,2704.4,2703.9,3.69835]
[1739543553704,0.7893,2704.4,2704.0,3.73518698]
[1739543554004,0.7893,2704.8,2704.0,0.5252]
[1739543554162,0.7893,2704.8,2704.2,3.69782]
[1739543554366,0.7893,2704.8,2704.4,3.69767]
[1739543554669,0.7893,2704.8,2704.1,0.55]
[1739543554894,0.7893,2704.8,2704.2,3.69783]
[1739543555406,0.7893,2704.8,2704.4,3.69765]
[1739543555715,5.32,2705.2,2704.6,0.5252]
[1739543555881,0.7517,2705.3,2704.6,4.22249]
[1739543555882,4.44824,2705.3,2704.6,4.22249]
[1739543558320,3.69658,2705.2,2704.6,3.69739]
[1739543559711,3.69658,2705.2,2704.6,3.69731]
[1739543559911,5.32,2705.5,2704.7,0.03696758]
[1739543560079,5.32,2705.5,2705.1,3.69666]
[1739543560496,5.32,2705.5,2705.3,3.69641]
[1739543560813,3.69597,2705.7,2705.1,4.22186]
[1739543561183,3.69624,2705.5,2704.9,3.69689]
[1739543561514,3.69604,2705.6,2705.0,0.55]
[1739543561979,6.0717,2705.9,2705.2,3.69648]
[1739543562183,0.7517,2705.9,2705.4,3.69629]
[1739543562968,3.69581,2705.8,2705.2,3.69648]
[1739543563164,3.69578,2705.8,2705.2,4.490807]
[1739543563371,0.7517,2705.9,2705.3,0.55]
[1739543563594,0.7517,2705.9,2705.3,0.5252]
[1739543563778,3.69576,2705.8,2705.2,3.69646]
[1739543564216,0.7517,2705.9,2705.3,3.69635]
[1739543564508,3.69578,2705.8,2705.3,0.739281]
[1739543564813,3.69578,2705.8,2705.3,4.435721]
[1739543565721,3.69557,2706.0,2705.3,4.435721]
[1739543566020,3.69557,2706.0,2705.3,0.739281]
[1739543566178,3.6957,2705.9,2705.4,3.69628]
[1739543567116,3.69557,2706.0,2705.4,4.5094821]
[1739543567628,3.6957,2705.9,2705.4,4.5094821]
[1739543568143,9.01546,2706.1,2705.5,3.69615]
[1739543568333,4.44701,2706.2,2705.5,3.69615]
[1739543568495,4.44701,2706.2,2705.7,3.69588]
[1739543568838,0.0075,2706.9,2705.7,3.69588]
[1739543568839,0.7517,2706.5,2705.8,0.40654309]
[1739543568988,3.69496,2706.4,2705.8,4.065248]
[1739543569418,3.69519,2706.3,2705.8,0.369588]
[1739543569593,7.39,2706.4,2705.8,4.065348]
[1739543569793,3.6951,2706.3,2705.9,0.7761238]
[1739543570223,3.6951,2706.3,2705.7,7.39158]
[1739543570419,0.7517,2706.5,2705.5,0.5252]
[1739543570752,3.69586,2705.8,2705.3,3.69638]
[1739543570894,4.48045,2706.0,2705.2,0.5252]
[1739543571095,3.69555,2706.0,2705.5,3.69607]
[1739543571291,0.7849,2706.3,2705.7,3.69588]
[1739543571510,3.69474,2706.6,2706.0,3.69546]
[1739543571733,0.7849,2706.9,2705.8,4.25779392]
[1739543571734,3.69518,2706.3,2705.8,4.22086]
[1739543572105,3.69518,2706.3,2705.8,0.5252]
[1739543572511,7.39034,2706.3,2705.8,4.22089]
[1739543572706,3.69516,2706.3,2705.8,4.22089]
[1739543572905,3.69516,2706.3,2705.8,5.067578]
[1739543573106,3.69516,2706.3,2705.8,8.763268]
[1739543573424,3.69516,2706.3,2705.8,5.067628]
[1739543575310,3.69529,2706.2,2705.8,1.371888]
[1739543575809,4.47991,2706.4,2705.8,5.067558]
[1739543576011,0.7849,2706.8,2706.2,3.69512]
[1739543576254,0.7849,2707.4,2706.7,3.69451]
[1739543576554,3.69389,2707.2,2706.4,4.22011]
[1739543576776,0.7849,2707.4,2706.1,4.93702798]
[1739543576996,3.69438,2706.9,2706.3,3.69504]
[1739543577204,3.69438,2706.9,2706.2,4.4362728]
[1739543577492,3.69403,2707.1,2706.5,3.6948]
[1739543577829,7.38812,2707.1,2706.4,3.69486]
[1739543578033,3.69403,2707.1,2706.4,4.56296828]
[1739543578264,3.69435,2706.9,2706.3,4.24504]
[1739543578526,6.69376,2707.3,2706.2,4.4363928]
[1739543578740,3.69448,2706.8,2706.2,0.7411828]
[1739543579868,3.69472,2706.6,2706.0,3.69544]
[1739543580229,7.38948,2706.6,2706.0,3.69544]
[1739543580543,4.47936,2706.8,2706.1,3.69528]
[1739543580738,4.47936,2706.8,2706.2,3.69514]
[1739543580953,3.69415,2707.0,2706.4,0.5252]
[1739543580954,3.69427,2706.9,2706.4,0.5252]
[1739543581272,3.69454,2706.7,2706.1,8.10711798]
[1739543581565,3.69441,2706.8,2706.3,3.69505]
[1739543582535,3.69441,2706.8,2706.2,0.55]
[1739543582755,3.69455,2706.7,2706.1,1.38658738]
[1739543582926,3.69455,2706.7,2706.1,4.22044]
[1739543583123,3.69432,2706.9,2706.1,4.22044]
[1739543583326,3.69432,2706.9,2706.3,0.55]
[1739543583327,3.69443,2706.8,2706.3,0.55]
[1739543583563,3.69408,2707.1,2706.5,3.6948]
[1739543583723,0.7849,2707.2,2706.7,3.69451]
[1739543583929,4.47888,2707.2,2706.5,3.6948]
[1739543584165,4.47888,2707.2,2706.5,3.69473]
[1739543584324,0.7849,2707.2,2707.0,3.69408]
[1739543584530,3.69317,2707.7,2707.1,0.03693716]
[1739543584761,3.69333,2707.6,2707.1,3.69398]
[1739543584964,3.69317,2707.7,2707.1,3.69398]
[1739543585484,3.7849,2707.8,2706.6,0.5252]
[1739543585764,3.69378,2707.3,2706.6,0.5252]
[1739543585912,3.69378,2707.3,2706.8,3.69431]
[1739543586379,3.69363,2707.4,2706.9,3.69425]
[1739543587193,3.69372,2707.3,2706.7,4.24446]
[1739543587474,3.69398,2707.1,2706.5,3.69479]
[1739543587679,7.38806,2707.1,2706.5,3.69479]
[1739543587879,3.69415,2707.0,2706.5,3.69479]
[1739543588104,3.69398,2707.1,2706.6,3.69467]
[1739543588341,0.7722,2707.2,2706.8,3.69438]
[1739543588543,0.7722,2707.2,2706.7,3.69445]
[1739543588700,3.69353,2707.5,2706.8,3.6943]
[1739543589046,3.69365,2707.4,2706.8,3.6943]
[1739543589342,3.69372,2707.3,2706.8,3.69435]
[1739543589887,0.7722,2707.8,2706.9,4.24426]
[1739543590093,5.32,2707.9,2707.5,3.69331]
[1739543590307,4.46491,2708.1,2707.5,3.69331]
[1739543590308,3.69288,2708.0,2707.5,3.69331]
[1739543590623,3.69291,2707.9,2707.3,3.69367]
[1739543590827,3.69291,2707.9,2707.3,7.38728]
[1739543591031,3.69291,2707.9,2707.3,3.69364]
[1739543591192,3.69326,2707.7,2707.1,4.7691]
[1739543591392,3.69326,2707.7,2707.1,5.6871928]
[1739543591626,3.69326,2707.7,2707.1,9.3811028]
[1739543591793,7.38601,2707.9,2707.1,5.6871928]
[1739543591991,3.69305,2707.8,2707.1,5.6871928]
[1739543592216,3.69298,2707.9,2707.3,3.69371]
[1739543592460,3.69298,2707.9,2707.4,4.062921]
[1739543592742,3.69305,2707.8,2707.4,0.369371]
[1739543593287,3.69337,2707.6,2707.1,1.9932928]
[1739543593600,3.69337,2707.6,2707.1,1.0752]
[1739543593798,3.69337,2707.6,2707.1,4.76917]
[1739543594589,0.7722,2707.5,2706.8,1.3535445]
[1739543594844,0.7722,2707.5,2707.0,3.69403]
[1739543595131,0.7722,2707.5,2707.1,4.432779]
[1739543595851,0.7722,2707.9,2707.2,0.55]
[1739543596059,0.005,2708.4,2707.2,0.55]
[1739543596060,4.46469,2708.2,2707.7,3.69313]
[1739543596254,4.46469,2708.2,2707.5,3.69334]
[1739543596255,0.005,2708.4,2707.5,4.41182798]
[1739543596460,3.69235,2708.3,2707.9,0.5252]
[1739543596589,0.005,2708.4,2707.9,4.21809]
[1739543596792,0.005,2708.4,2707.9,5.04605068]
[1739543596995,0.005,2708.4,2707.9,5.009118]
[1739543597852,0.005,2708.4,2707.9,8.701928]
[1739543598016,0.005,2708.4,2708.0,3.69264]
[1739543598617,0.005,2708.4,2708.2,3.69237]
[1739543598808,0.005,2708.4,2708.3,0.369237]
[1739543600640,0.005,2708.4,2708.0,4.24269]
[1739543601042,0.005,2708.4,2707.4,3.69349]
[1739543601216,3.69271,2708.1,2707.4,3.69349]
[1739543601415,3.69264,2708.1,2707.5,3.69338]
[1739543601740,0.8226,2708.3,2707.9,0.55]
[1739543601939,0.005,2708.4,2708.0,3.69268]
[1739543602854,0.005,2708.4,2708.2,3.69245]
[1739543603364,0.005,2708.4,2708.1,0.03692131]
[1739543603508,0.005,2708.4,2708.1,3.72948131]
[1739543603713,0.005,2708.4,2708.0,3.69266]
[1739543603957,0.005,2708.4,2708.1,0.5192161]
[1739543605070,3.69722,2708.4,2708.1,0.5192161]
[1739543605244,3.69237,2708.3,2707.9,1.499501]
[1739543605440,0.005,2708.4,2707.9,4.76807]
[1739543605829,3.69721,2708.4,2707.9,4.76807]
[1739543606238,3.69721,2708.4,2707.4,3.69345]
[1739543606239,3.69285,2708.0,2707.4,3.69345]
[1739543606443,3.69293,2707.9,2707.4,0.791226]
[1739543606659,3.69281,2708.0,2707.4,4.484686]
[1739543607066,3.69281,2708.0,2707.5,4.24342]
[1739543607389,3.69248,2708.2,2706.9,0.5252]
[1739543607595,0.8226,2708.0,2706.9,0.5252]
[1739543607769,0.8226,2707.4,2706.8,4.5226445]
[1739543608070,4.51626,2707.4,2706.8,4.5226445]
[1739543608241,4.51626,2707.4,2706.8,0.8283445]
[1739543608423,3.69385,2707.2,2706.8,0.8283445]
[1739543609256,3.69378,2707.3,2706.8,0.8283445]
[1739543609452,4.51626,2707.4,2706.8,4.5227245]
[1739543609644,4.51626,2707.4,2706.9,0.45228245]
[1739543609845,4.51626,2707.4,2706.9,4.14649245]
[1739543610540,4.51626,2707.4,2706.9,0.45228245]
[1739543610936,0.8226,2707.7,2707.0,3.69411]
[1739543611137,7.38627,2707.8,2707.2,3.69382]
[1739543611382,3.69324,2707.7,2707.1,0.94353302]
[1739543611573,3.69312,2707.8,2707.1,0.94353302]
[1739543611765,3.69331,2707.6,2707.1,0.94353302]
[1739543611966,7.51557,2707.9,2707.2,3.69374]
[1739543612169,3.69279,2708.0,2707.4,3.6935]
[1739543612686,3.69728,2708.4,2707.7,0.55]
[1739543612897,0.005,2708.4,2707.7,0.55]
[1739543613063,3.69259,2708.2,2707.7,0.55]
[1739543613268,3.69259,2708.2,2707.7,1.026849]
[1739543614388,3.6973,2708.4,2707.7,1.026849]
[1739543614592,0.005,2708.4,2708.1,3.69251]
[1739543614886,0.005,2708.4,2708.2,0.5252]
[1739543615452,3.69722,2708.4,2708.0,0.55]
[1739543615672,0.005,2708.4,2708.0,1.081814]
[1739543616251,0.005,2708.4,2708.0,4.774454]
[1739543616875,0.005,2708.4,2708.1,3.69253]
[1739543617249,0.005,2708.4,2708.1,3.69252]
[1739543617444,0.005,2708.4,2708.2,3.6924]
[1739543617650,0.005,2708.4,2708.3,0.37293191]
[1739543617948,0.005,2708.4,2708.2,3.69245]
[1739543618179,0.005,2708.4,2708.1,0.03691905]
[1739543618371,0.005,2708.4,2708.1,3.69262]
[1739543618991,3.69272,2708.1,2707.7,0.476849]
[1739543619171,3.69276,2708.0,2707.5,0.5252]
[1739543619372,3.69248,2708.2,2707.6,4.2433]
[1739543619713,3.69296,2707.9,2707.5,0.5252]
[1739543619985,3.69269,2708.1,2707.5,4.68680973]
[1739543620189,7.38544,2708.1,2707.5,0.99343973]
[1739543620376,3.69269,2708.1,2707.5,4.68678973]
[1739543620563,4.47472,2708.3,2707.6,3.6932]
[1739543620766,3.69277,2708.0,2707.5,4.68684973]
[1739543620993,3.6929,2707.9,2707.6,0.46868497]
[1739543621287,3.69277,2708.0,2707.6,0.46868497]
[1739543621989,3.69277,2708.0,2707.5,0.5252]
[1739543622148,3.69277,2708.0,2707.3,1.0752]
[1739543622347,3.69277,2708.0,2707.4,3.6935]
[1739543622593,3.69291,2707.9,2707.4,3.6935]
[1739543622792,3.69277,2708.0,2707.4,3.6935]
[1739543622992,7.38564,2708.0,2707.5,4.17027]
[1739543623296,3.69297,2707.9,2707.5,0.47687]
[1739543623469,3.69277,2708.0,2707.3,4.76878]
[1739543623992,3.69296,2707.9,2707.3,4.76878]
[1739543624189,3.69277,2708.0,2707.3,4.76878]
[1739543624393,3.69297,2707.9,2707.3,8.46242]
[1739543624548,3.69297,2707.9,2707.3,9.308662]
[1739543624752,3.69273,2708.1,2707.5,3.69343]
[1739543625067,3.69296,2707.9,2707.3,5.615022]
[1739543625254,3.69303,2707.8,2707.3,1.921442]
[1739543625454,3.7823,2708.0,2707.1,0.5252]
[1739543625681,3.7823,2708.0,2707.1,4.21908]
[1739543625889,3.69317,2707.7,2707.1,4.21908]
[1739543626093,3.69289,2707.9,2707.3,3.69371]
[1739543626278,0.7823,2708.0,2707.5,3.69342]
[1739543626582,4.47513,2708.0,2707.5,3.69342]
[1739543626775,0.7823,2708.0,2707.3,4.484889]
[1739543626996,3.6931,2707.8,2707.3,4.484889]
[1739543627231,3.69321,2707.7,2707.3,0.791279]
[1739543627519,7.38649,2707.7,2707.1,4.2191]
[1739543627727,3.69359,2707.4,2706.9,3.69419]
[1739543627908,3.69359,2707.4,2707.0,3.69411]
[1739543628082,3.69312,2707.8,2707.0,0.03693573]
[1739543628291,4.47515,2708.0,2707.5,3.69337]
[1739543628484,4.47515,2708.0,2707.1,0.5252]
[1739543628485,3.6931,2707.8,2707.2,3.69385]
[1739543629135,4.47506,2708.0,2707.6,3.6933]
[1739543629284,0.7823,2708.0,2707.6,3.69323]
[1739543629936,4.47515,2708.0,2707.5,3.69343]
[1739543632131,4.47515,2708.0,2707.4,7.38701]
[1739543632315,0.7823,2708.0,2707.6,3.69321]
[1739543632827,4.41182798,2708.6,2707.4,4.487191]
[1739543632828,0.8045,2708.3,2707.9,3.69287]
[1739543632991,0.8045,2708.3,2707.9,3.6928]
[1739543633394,0.8045,2708.3,2707.9,7.38562]
[1739543633631,0.005,2708.4,2708.0,3.69275]
[1739543633809,0.005,2708.4,2707.9,3.6928]
[1739543634499,0.005,2708.4,2707.9,7.75489]
[1739543634698,3.69722,2708.4,2707.9,4.06208]
[1739543635100,0.005,2708.4,2707.9,0.36928]
[1739543635300,3.69242,2708.3,2707.8,3.69295]
[1739543635840,3.69242,2708.3,2707.6,1.0752]
[1739543636040,3.69264,2708.1,2707.6,4.7685]
[1739543636340,0.8045,2708.2,2707.3,4.21883]
[1739543636495,3.69295,2707.9,2707.4,3.69355]
[1739543636939,3.69295,2707.9,2707.4,7.38702]
[1739543637127,3.69295,2707.9,2707.4,3.69347]
[1739543637440,0.8045,2708.1,2707.2,3.69376]
[1739543637640,3.69322,2707.7,2707.2,3.69376]
[1739543638105,3.69312,2707.8,2707.3,3.6937]
[1739543638305,3.69312,2707.8,2707.2,3.69376]
[1739543638614,3.69318,2707.7,2707.2,3.69376]
[1739543638813,7.38645,2707.7,2707.2,3.69376]
[1739543639032,3.69361,2707.4,2706.9,3.69423]
[1739543639720,3.69361,2707.4,2706.9,3.69418]
[1739543640217,3.69374,2707.3,2706.8,4.21957]
[1739543640402,3.69374,2707.3,2706.8,3.69438]
[1739543640599,0.8045,2707.5,2706.5,0.5252]
[1739543640832,3.69541,2706.1,2705.6,0.5252]
[1739543641004,3.69582,2705.8,2705.2,4.22169]
[1739543641336,4.50005,2706.0,2705.4,3.6963]
[1739543641503,3.69563,2705.9,2705.2,4.22166]
[1739543641852,0.8045,2706.0,2705.6,3.69594]
[1739543642527,3.8045,2706.6,2705.8,3.69574]
[1739543642703,3.69481,2706.5,2705.8,3.69574]
[1739543642906,3.69498,2706.4,2705.6,3.696]
[1739543643168,3.69558,2706.0,2705.4,3.69628]
[1739543643300,3.69558,2706.0,2705.4,4.5302976]
[1739543643503,3.69558,2706.0,2705.2,4.643896]
[1739543643718,3.69616,2705.6,2704.9,4.22218]
[1739543643939,0.8045,2705.5,2705.0,3.69685]
[1739543644551,0.8045,2705.5,2704.6,5.856]
[1739543644749,3.69712,2704.9,2704.2,0.5252]
[1739543645107,3.69712,2704.9,2704.2,4.22311]
[1739543645307,3.69674,2705.1,2704.3,3.69771]
[1739543645611,3.69708,2704.9,2704.2,1.317306]
[1739543645806,0.8313,2704.8,2704.2,0.792106]
[1739543646086,0.8313,2704.8,2704.3,3.69779]
[1739543646243,0.8313,2705.1,2704.5,3.69746]
[1739543646442,3.69712,2704.9,2704.1,3.69808]
[1739543646648,3.69712,2704.9,2704.2,3.69794]
[1739543646801,3.69712,2704.9,2704.3,3.69779]
[1739543647002,4.52807,2705.1,2704.5,3.69743]
[1739543647268,4.41182798,2704.6,2702.7,0.18714311]
[1739543647406,4.41182798,2704.6,2703.3,3.69916]
[1739543647407,0.8313,2704.2,2703.3,3.69916]
[1739543647606,0.8313,2704.2,2703.9,3.69831]
[1739543647828,3.69742,2704.6,2703.8,3.69836]
[1739543648028,0.8313,2704.8,2703.6,0.5252]
[1739543648229,0.8313,2704.8,2703.8,3.69842]
[1739543648431,0.8313,2704.8,2704.0,3.69822]